Cogmind - Beta 15 @@@ ROGUE MODE // 2025.07.12 @ 14:29:37 Player: Dingot Result: Destroyed by P-70 Sage with Tesla Rifle Performance ------------- Evolutions (6) 3000 Regions Visited (18) 3600 Robots Destroyed (122) 610 Value Destroyed (2505) 2505 Prototype IDs (36) 720 Alien Tech Used (0) 0 Bonus (2169) 2169 TOTAL SCORE: 12604 Bonus ------- Follower Combat Kills 746 Entered Garrisons 200 Used RIF Installer 500 Entered DSFs 1000 Aligned with FarCom 300 Friendly Fire -577 Cogmind --------- Core Integrity 0/1150 Matter 300/300 Energy 100/100 System Corruption 9% Temperature Cool (0) Movement Core (50) Location -4/Garrison Parts ------- > --- POWER (2) -------- (None) > --- PROPULSION (6) --- (None) > --- UTILITY (9) ------ (None) > --- WEAPON (2) ------- (None) > --- INVENTORY (5) ---- Cooled Cesium-ion Thruster Biomechanical Wings Stasis Canceller Improved Reaction Control System Improved Light Armor Plating Peak State ------------ > --- POWER ------------ F-cell Engine > --- PROPULSION ------- Cooled VTOL Module Cooled Cesium-ion Thruster Cooled Cesium-ion Thruster Cooled Cesium-ion Thruster Cooled Cesium-ion Thruster Biomechanical Wings > --- UTILITY ---------- ECM Suite Improved Light Armor Plating Hacking Suite Hacking Suite Improved Hacking Suite System Shield > --- WEAPON ----------- Bore Cannon Katana > --- INVENTORY -------- Cooled VTOL Module Cooled VTOL Module Improved Reaction Control System Improved Light Armor Plating Improved Light Armor Plating [Rating: 69] Favorites ----------- Power Light Ion Engine Engine Light Ion Engine Power Core Light Nuclear Core Reactor Cold Fusion Reactor Propulsion Light Treads Treads Light Treads Flight Unit Cooled VTOL Module Utility High-capacity Storage Unit Device ECM Suite Storage High-capacity Storage Unit Hackware Hacking Suite Protection Light Armor Plating Weapon Light Cannon Energy Gun Improved EM Shotgun Ballistic Gun Assault Rifle Ballistic Cannon Light Cannon Launcher Grenade Launcher Special Weapon Field Lobotomy Kit Slashing Weapon Katana Build | -11 -10 -10 -9 -9 -9 -8 -8 -7 -7 -6 -6 -6 -5 -4 -4 -4 -4 -4 ------- Run | Yrd Mat Min Mat Min Exi Min Mat Fac DSF Fac Was Fac Fac Fac Was Fac DSF Gar Slots Evolved 12 | . . . 2 . . . 2 2 . 2 . . 2 2 . . . . Power 1 | . . . . . . . . . . . . . . 1 . . . . Propulsion 4 | . . . 1 . . . 1 . . 2 . . . . . . . . Utility 7 | . . . 1 . . . 1 2 . . . . 2 1 . . . . Weapon . | . . . . . . . . . . . . . . . . . . . Parts Attached 82 | 5 11 1 14 4 . 3 14 3 3 8 3 7 1 . 2 . 3 . Power 11 | 1 1 . 1 1 . 1 1 1 . 1 2 . . . 1 . . . Engine 5 | 1 1 . 1 1 . . . . . . 1 . . . . . . . Core 4 | . . . . . . 1 1 1 . 1 . . . . . . . . Reactor 2 | . . . . . . . . . . . 1 . . . 1 . . . Propulsion 27 | 2 3 . 4 2 . . 5 . . 5 . 6 . . . . . . Treads 11 | 2 3 . 4 2 . . . . . . . . . . . . . . Leg . | . . . . . . . . . . . . . . . . . . . Wheel . | . . . . . . . . . . . . . . . . . . . Hover . | . . . . . . . . . . . . . . . . . . . Flight 16 | . . . . . . . 5 . . 5 . 6 . . . . . . Utility 24 | . 3 . 4 . . 1 5 2 3 2 . 1 . . . . 3 . Device 3 | . . . . . . . 2 . . . . . . . . . 1 . Storage 1 | . 1 . . . . . . . . . . . . . . . . . Processor . | . . . . . . . . . . . . . . . . . . . Hackware 8 | . . . . . . . 1 2 1 2 . . . . . . 2 . Protection 12 | . 2 . 4 . . 1 2 . 2 . . 1 . . . . . . Artifact . | . . . . . . . . . . . . . . . . . . . Weapon 20 | 2 4 1 5 1 . 1 3 . . . 1 . 1 . 1 . . . Energy Gun 4 | 2 . . 2 . . . . . . . . . . . . . . . Energy Cannon . | . . . . . . . . . . . . . . . . . . . Ballistic Gun 3 | . 2 . . . . 1 . . . . . . . . . . . . Ballistic Cannon 8 | . 1 . 3 1 . . 1 . . . 1 . 1 . . . . . Launcher 3 | . 1 1 . . . . . . . . . . . . 1 . . . Special Weapon 1 | . . . . . . . 1 . . . . . . . . . . . Impact Weapon . | . . . . . . . . . . . . . . . . . . . Slashing Weapon 1 | . . . . . . . 1 . . . . . . . . . . . Piercing Weapon . | . . . . . . . . . . . . . . . . . . . Special Melee Weapon . | . . . . . . . . . . . . . . . . . . . Unidentified Prototypes 7 | . . . 2 . . . . . . 1 2 1 . . 1 . . . Parts Lost 44 | . 1 . 12 1 . 2 8 . 1 2 . . . . 2 . 2 13 Power 5 | . . . 2 . . . 1 . . 1 . . . . . . 1 . Propulsion 13 | . . . 3 1 . 1 1 . . 1 . . . . . . 1 5 Utility 18 | . 1 . 3 . . 1 5 . . . . . . . 1 . . 7 Weapon 8 | . . . 4 . . . 1 . 1 . . . . . 1 . . 1 Highest Loss Streak 11 | . 1 . 5 1 . 2 6 . 1 1 . . . . 1 . 2 11 To Critical Strikes . | . . . . . . . . . . . . . . . . . . . Average Backups 10 | 1 8 9 14 18 17 16 8 4 4 4 4 4 5 5 5 5 5 5 Power . | . 1 1 . . . . 1 1 1 1 1 . . . . . . . Propulsion 3 | . 1 2 5 6 5 4 2 1 1 . . 2 2 2 2 2 2 2 Utility 4 | . 2 3 4 6 7 7 4 2 2 2 3 2 3 3 3 3 3 3 Weapon 2 | . 2 3 3 4 4 3 1 . . . . . . . . . . . Tool/Special . | . . . . . . . . . . . . . . . . . . . Unused Backups 7 | . . . . . . 1 1 . 1 1 . 1 . . . . . 2 Power 1 | . . . . . . . . . . 1 . . . . . . . . Propulsion 2 | . . . . . . 1 . . . . . 1 . . . . . . Utility 4 | . . . . . . . 1 . 1 . . . . . . . . 2 Weapon . | . . . . . . . . . . . . . . . . . . . Tool/Special . | . . . . . . . . . . . . . . . . . . . Average Slot Usage (%) 86 | . 89 100 85 88 88 76 84 69 90 79 98 100 83 73 69 63 66 43 Engine 5 | . 13 14 3 . . . . . . . 1 6 5 5 5 5 3 . Core 1 | . . . . . . 9 7 7 7 5 4 . . . . . . . Treads 22 | . 27 28 29 33 33 22 6 . . . . . . . . . . . Flight 7 | . . . . . . . 23 30 30 31 40 40 35 31 31 31 29 14 Device 1 | . . . . . . . 10 7 7 6 6 6 5 5 5 5 6 6 Storage 8 | . 11 14 11 11 11 11 3 . . . . . . . . . . . Hackware 4 | . . . . . . . . . 17 21 26 26 18 15 15 15 20 18 Protection 13 | . 7 14 19 22 22 11 16 7 13 5 6 6 5 5 2 . . . Energy Gun 7 | . 5 . 8 21 22 11 3 . . . . . . . . . . . Ballistic Gun 3 | . 9 8 . . . 2 3 . . . . . . . . . . . Ballistic Cannon 7 | . 9 14 10 . . 7 4 7 4 . 4 6 5 5 2 . . . Launcher 1 | . 2 5 1 . . . . . . . . . . . 2 . . . Slashing Weapon 1 | . . . . . . . 3 7 7 6 6 6 5 5 5 5 5 3 Peak Build Rating 69 | 5 8 9 15 17 17 19 33 30 39 58 66 69 64 62 63 53 63 63 Average Rating 19 | 3 6 8 11 15 16 16 25 28 34 39 62 64 62 62 59 53 57 35 On Entrance 34 | . 5 7 9 15 16 17 19 22 30 36 58 65 64 62 62 53 53 63 Naked Turns 1 | . . . . . . . . . . . . . . . . . . 1 Heaviest Build 63 | 7 51 53 61 56 56 60 63 17 20 14 28 28 28 28 28 16 16 14 Greatest Support 60 | 40 40 40 60 60 60 40 40 19 20 33 29 40 30 30 30 30 38 25 Greatest Overweight (x) 3 | . 2 1 1 1 . 1 3 . . . . . . . . . . . Average Overweight (x) . | . . 1 . . . 1 . . . . . . . . . . . . Largest Inventory Capacity 20 | 5 20 20 20 20 20 20 20 5 5 5 5 5 5 5 5 5 5 5 Average Capacity 15 | 5 16 20 20 20 20 20 10 5 5 5 5 5 5 5 5 5 5 5 Most Carried 20 | 3 11 10 20 20 20 20 20 4 5 5 5 5 5 5 5 5 5 5 Average Carried 11 | 1 8 9 14 19 20 19 9 2 4 4 4 4 5 5 5 5 5 5 Final Capacity 20 | 5 20 20 20 20 20 20 5 5 5 5 5 5 5 5 5 5 5 5 Final Carried 20 | 1 10 10 20 20 20 20 5 2 5 4 4 5 5 5 5 5 5 5 Class Distribution -------------------- 78% | Mutant 18% | Hacker-Sprinter Dominant Class ---------------- Mutant | -10/Materials Mutant | -10/Mines Mutant | -9/Materials Mutant | -9/Mines Mutant | -9/Exiles Mutant | -8/Mines Infiltrator-Mutant | -8/Materials Infiltrator-Mutant | -7/Factory Hacker-Sprinter | -7/DSF Hacker-Sprinter | -6/Factory Hacker-Sprinter | -6/Waste Hacker-Sprinter | -6/Factory Hacker-Sprinter | -5/Factory Hacker-Sprinter | -4/Factory Hacker-Sprinter | -4/Waste Hacker-Sprinter | -4/Factory Hacker-Sprinter | -4/DSF Hacker-Sprinter | -4/Garrison Resources | -11 -10 -10 -9 -9 -9 -8 -8 -7 -7 -6 -6 -6 -5 -4 -4 -4 -4 -4 ----------- Run | Yrd Mat Min Mat Min Exi Min Mat Fac DSF Fac Was Fac Fac Fac Was Fac DSF Gar Matter Collected 3131 | 250 453 32 944 168 . 62 104 . 115 182 157 416 . . 248 . . . Remotely . | . . . . . . . . . . . . . . . . . . . Salvage Created 4949 | . 457 60 1179 343 . 180 360 . . 265 . 1231 110 . 764 . . . Parts 236 | . 34 12 79 33 . 8 11 . . 6 . 51 1 . 1 . . . Haulers Intercepted 17 | . 2 . 6 . . . 3 . . 2 . 3 1 . . . . . Recyclers Shooed 1 | . . . . . . . . . . . . 1 . . . . . . Parts Field Recycled . | . . . . . . . . . . . . . . . . . . . Retrieved Matter . | . . . . . . . . . . . . . . . . . . . Parts Self-Destructed . | . . . . . . . . . . . . . . . . . . . Prevented . | . . . . . . . . . . . . . . . . . . . Kills | -11 -10 -10 -9 -9 -9 -8 -8 -7 -7 -6 -6 -6 -5 -4 -4 -4 -4 -4 ------- Run | Yrd Mat Min Mat Min Exi Min Mat Fac DSF Fac Was Fac Fac Fac Was Fac DSF Gar Combat Hostiles Destroyed 70 | . 9 6 30 14 . 3 2 . . 1 . 2 . . 3 . . . Melee 1 | . . . . . . . . . . 1 . . . . . . . . Guns 12 | . . . 1 7 . 2 2 . . . . . . . . . . . Cannons 29 | . 4 3 19 . . 1 . . . . . 2 . . . . . . AOE 28 | . 5 3 10 7 . . . . . . . . . . 3 . . . Classes Destroyed 16 | . 6 1 2 3 . . . . . 1 . 2 . . 1 . . . Worker 3 | . 1 . . . . . . . . . . 2 . . . . . . Builder 4 | . . . 1 2 . . . . . . . 1 . . . . . . Tunneler 2 | . . . . 2 . . . . . . . . . . . . . . Hauler 17 | . 2 . 6 . . . 3 . . 2 . 3 1 . . . . . Recycler 12 | . 1 . 4 . . . 2 . . . . 5 . . . . . . Operator 4 | . 2 . 1 . . . 1 . . . . . . . . . . . Watcher 5 | . 2 . 3 . . . . . . . . . . . . . . . Swarmer 28 | . . 6 14 6 . . . . . . . 2 . . . . . . Grunt 28 | . 9 . 8 6 . 3 2 . . . . . . . . . . . Brawler 1 | . . . . 1 . . . . . . . . . . . . . . Duelist 1 | . . . . 1 . . . . . . . . . . . . . . Sentry 8 | . . . 8 . . . . . . . . . . . . . . . Programmer 1 | . . . . . . . . . . 1 . . . . . . . . Compactor 3 | . . . . . . . . . . . . . . . 3 . . . Surgeon 1 | . . . . . . . . . . . . 1 . . . . . . Wasp 2 | . . . . . . . . . . . . 2 . . . . . . Thug 1 | . . . . . . . . . . . . 1 . . . . . . Martyr 1 | . . . . . . . . . . . . 1 . . . . . . Best Kill Streak 10 | . 3 3 5 10 . 3 4 . . 1 . 3 1 . 3 . . . Combat Bots Only 6 | . 2 3 5 6 . 3 2 . . 1 . 2 . . 3 . . . Max Kills in Single Turn 4 | . 2 2 3 4 . 1 3 . . 1 . 2 1 . 1 . . . Gunslinging 1 | . . . . 1 . . . . . . . . . . . . . . Exploded 3 | . 1 2 2 3 . . . . . . . . . . 1 . . . Melee 1 | . . . . . . . . . . 1 . . . . . . . . Uniques/NPCs Destroyed . | . . . . . . . . . . . . . . . . . . . Combat | -11 -10 -10 -9 -9 -9 -8 -8 -7 -7 -6 -6 -6 -5 -4 -4 -4 -4 -4 -------- Run | Yrd Mat Min Mat Min Exi Min Mat Fac DSF Fac Was Fac Fac Fac Was Fac DSF Gar Hostile Shots Fired 703 | . 50 20 228 33 . 21 87 . 34 28 . 46 . . 2 . 7 147 Missed 251 | . 23 8 60 9 . 5 33 . 20 13 . 21 . . . . 3 56 Hits 452 | . 27 12 168 24 . 16 54 . 14 15 . 25 . . 2 . 4 91 Melee 6 | . . . . 2 . . 2 . . . . . . . 2 . . . Projectile 446 | . 27 12 168 22 . 16 52 . 14 15 . 25 . . . . 4 91 AOE 2 | . . . . . . . . . . . . . . . . . 2 . Critical Strikes 18 | . . . 6 . . 1 2 . . 1 . 1 . . 1 . . 6 Damage Taken 7376 | . 412 100 2040 323 . 303 1115 . 273 244 . 469 . . 108 . 244 1745 Core 1958 | . 48 7 211 78 . 36 224 . 74 59 . 61 . . 57 . 31 1072 Absorbed by Shields 12 | . . . . . . . . . 12 . . . . . . . . . Redirected to Shielding 69 | . . . . . . . 48 . 21 . . . . . . . . . Regen/Repaired (Parts) 246 | . . . 116 . . . . . . 111 16 3 . . . . . . Core Remaining (%) 75 | 100 . 78 . . . 18 59 . 89 . . 85 100 . . . . . Volleys Fired 328 | . 65 7 124 20 . 11 26 . . . 16 49 . . 10 . . . Largest 2 | . 2 2 2 2 . 2 2 . . . 1 1 . . 1 . . . Hottest 101 | . 80 50 83 101 . 101 70 . . . 48 48 . . 52 . . . Shots Fired 448 | . 103 12 180 29 . 19 31 . . . 16 48 . . 10 . . . Gun 150 | . 59 5 44 18 . 14 10 . . . . . . . . . . . Cannon 246 | . 34 5 122 . . 5 16 . . . 16 48 . . . . . . Launcher 47 | . 10 2 14 11 . . . . . . . . . . 10 . . . Special 5 | . . . . . . . 5 . . . . . . . . . . . Kinetic 302 | . 74 10 128 . . 5 21 . . . 16 48 . . . . . . Thermal 52 | . 19 . 20 7 . 6 . . . . . . . . . . . . Explosive 47 | . 10 2 14 11 . . . . . . . . . . 10 . . . Electromagnetic 42 | . . . 18 11 . 8 5 . . . . . . . . . . . Robot Hit Streak 21 | . 8 1 7 21 . 12 10 . . . 2 3 . . 6 . . . Robot Miss Streak 7 | . 3 3 5 2 . 3 7 . . . 6 7 . . . . . . Penetration Max 1 | . . . . . . . . . . . 1 1 . . . . . . Secondary Targets 1 | . . . . 1 . . . . . . . . . . . . . . Max Gunslinging Chain 1 | . . . . 1 . . . . . . . . . . . . . . Shots Hit Robots 280 | . 57 3 94 24 . 17 39 . . 7 5 25 1 . 6 . . 2 Core Hits 182 | . 28 6 57 26 . 10 21 . . 4 . 21 1 . 7 . . 1 Critical Kills 13 | . . . . . . . . . . . . 13 . . . . . . Critical Parts Destroyed 11 | . . . . . . . . . . . . 11 . . . . . . Critical Strikes 43 | . 4 . 7 . . 1 1 . . 3 3 24 . . . . . . Burn 4 | . 1 . 2 . . 1 . . . . . . . . . . . . Destroy 27 | . . . . . . . . . . . 3 24 . . . . . . Blast 8 | . 3 . 5 . . . . . . . . . . . . . . . Sever 4 | . . . . . . . 1 . . 3 . . . . . . . . Melee Attacks 49 | . . . . . . . 24 . 2 10 . 10 1 . . . . 2 Impact . | . . . . . . . . . . . . . . . . . . . Slashing 49 | . . . . . . . 24 . 2 10 . 10 1 . . . . 2 Piercing . | . . . . . . . . . . . . . . . . . . . Sneak Attacks 10 | . . . . . . . 3 . . 2 . 4 1 . . . . . Combat Hostiles . | . . . . . . . . . . . . . . . . . . . Follow-up Attacks . | . . . . . . . . . . . . . . . . . . . Damage Inflicted 9958 | . 1085 177 2379 1042 . 331 1136 . . 321 201 1038 65 . 2106 . . 77 Guns 1282 | . 315 . 352 239 . 264 112 . . . . . . . . . . . Cannons 2985 | . 389 52 1347 . . 67 206 . . . 201 723 . . . . . . Explosions 4239 | . 380 125 641 769 . . 218 . . . . . . . 2106 . . . Melee 1361 | . . . . . . . 600 . . 321 . 315 65 . . . . 60 Ramming 91 | . 1 . 39 34 . . . . . . . . . . . . . 17 Kinetic 3236 | . 589 52 1368 . . 67 236 . . . 201 723 . . . . . . Thermal 651 | . 115 . 147 69 . 102 218 . . . . . . . . . . . Explosive 4021 | . 380 125 641 769 . . . . . . . . . . 2106 . . . Electromagnetic 598 | . . . 184 170 . 162 82 . . . . . . . . . . . Impact . | . . . . . . . . . . . . . . . . . . . Slashing 1361 | . . . . . . . 600 . . 321 . 315 65 . . . . 60 Piercing . | . . . . . . . . . . . . . . . . . . . Highest Corruption 9 | . . . . . . . . . . 1 1 1 . . 9 9 9 9 Average Corruption 2 | . . . . . . . . . . 1 1 1 . . 9 9 9 9 Corruption Purged . | . . . . . . . . . . . . . . . . . . . Corruption Blocked . | . . . . . . . . . . . . . . . . . . . Effects 13 | . . . . . . . . . . 2 2 3 . . 3 . 1 2 Message Errors 3 | . . . . . . . . . . . 1 . . . 1 . . 1 Matter Fused 2 | . . . . . . . . . . . 1 . . . . . . 1 Heat Flow Errors 1 | . . . . . . . . . . . . 1 . . . . . . Energy Discharges 1 | . . . . . . . . . . 1 . . . . . . . . Parts Fused 2 | . . . . . . . . . . 1 . . . . 1 . . . Data Loss (major) 2 | . . . . . . . . . . . . 1 . . 1 . . . Alerts 1 | . . . . . . . . . . . . . . . . . 1 . Weapon Failures 1 | . . . . . . . . . . . . 1 . . . . . . Overload Shots . | . . . . . . . . . . . . . . . . . . . Overflow Damage 197 | . . . 1 33 . . 163 . . . . . . . . . . . Projectiles 1 | . . . 1 . . . . . . . . . . . . . . . Explosions 195 | . . . . 33 . . 162 . . . . . . . . . . . Melee 1 | . . . . . . . 1 . . . . . . . . . . . Knockbacks 20 | . 3 . 7 1 . . 6 . . . . 3 . . . . . . Impact 1 | . . . . 1 . . . . . . . . . . . . . . Kinetic 18 | . 3 . 6 . . . 6 . . . . 3 . . . . . . Secondary 1 | . . . 1 . . . . . . . . . . . . . . . Self-Inflicted Damage 433 | . 53 . 102 27 . . 244 . . . . . . . . . . 7 Shots 9 | . 2 . 3 1 . . 3 . . . . . . . . . . . Rammed 11 | . . . 4 1 . . . . . . . . . . . . . 6 Targets Rammed 14 | . 1 . 5 2 . . . . . . . . . . . . . 6 Kicked . | . . . . . . . . . . . . . . . . . . . Crushed 3 | . 1 . 1 1 . . . . . . . . . . . . . . Highest Temperature 437 | . 172 . 437 117 . 270 226 . . 16 6 380 5 2 8 . 62 24 Average Temperature 83 | . 52 . 130 41 . 154 60 . . 4 3 46 5 2 3 . 41 15 Received Heat Transfer 1985 | . 204 . 549 90 . 171 450 . . 18 . 60 . . . . . 443 Effects 11 | . . . 10 . . . . . . . . 1 . . . . . . Shutdowns 1 | . . . 1 . . . . . . . . . . . . . . . Interference 6 | . . . 5 . . . . . . . . 1 . . . . . . Short Circuit 3 | . . . 3 . . . . . . . . . . . . . . . Damage (minor) 1 | . . . 1 . . . . . . . . . . . . . . . Siege Activations . | . . . . . . . . . . . . . . . . . . . Martial Activations . | . . . . . . . . . . . . . . . . . . . Shielding Activations . | . . . . . . . . . . . . . . . . . . . Robots Disrupted 1 | . . . . . . 1 . . . . . . . . . . . . Combat Hostiles 1 | . . . . . . 1 . . . . . . . . . . . . Robots Corrupted . | . . . . . . . . . . . . . . . . . . . Combat Hostiles . | . . . . . . . . . . . . . . . . . . . Parts Fried 1 | . . . . . . . 1 . . . . . . . . . . . Impact Corruptions . | . . . . . . . . . . . . . . . . . . . Robots Melted . | . . . . . . . . . . . . . . . . . . . Combat Hostiles . | . . . . . . . . . . . . . . . . . . . Parts Melted 2 | . . . 1 . . 1 . . . . . . . . . . . . Heat Transferred 1593 | . 407 . 592 148 . 296 150 . . . . . . . . . . . Parts Sabotaged . | . . . . . . . . . . . . . . . . . . . Parts Stolen . | . . . . . . . . . . . . . . . . . . . Parts Stripped . | . . . . . . . . . . . . . . . . . . . Power Chain Reactions 1 | . . . . . . . 1 . . . . . . . . . . . Alert | -11 -10 -10 -9 -9 -9 -8 -8 -7 -7 -6 -6 -6 -5 -4 -4 -4 -4 -4 ------- Run | Yrd Mat Min Mat Min Exi Min Mat Fac DSF Fac Was Fac Fac Fac Was Fac DSF Gar Maximum Alert Level 2 | . . . 1 1 . . . . . . . 2 1 . . . . . Low Security (%) 68 | 100 100 100 16 67 . 100 100 100 100 100 100 15 . 100 100 100 100 100 Level 1 28 | . . . 83 32 . . . . . . . 29 100 . . . . . Level 2 2 | . . . . . . . . . . . . 54 . . . . . . Level 3 . | . . . . . . . . . . . . . . . . . . . Level 4 . | . . . . . . . . . . . . . . . . . . . Level 5 . | . . . . . . . . . . . . . . . . . . . High Security . | . . . . . . . . . . . . . . . . . . . Max Security . | . . . . . . . . . . . . . . . . . . . Peak Influence 579 | . 68 131 355 277 . 50 142 21 17 45 17 579 283 117 92 36 87 50 Initial 283 | . . . 27 102 . . . 21 16 3 2 . 283 117 40 36 27 50 Average 120 | . 12 53 259 162 . 7 69 21 12 4 2 375 263 117 57 36 52 16 Influence Increases 3524 | . 369 171 959 399 . 70 329 3 1 101 30 929 28 . 72 3 60 . Destroy 0b10 Robot/C 1780 | . 180 120 600 280 . 60 180 . . 20 . 340 . . . . . . Destroy 0b10 Robot/NC 260 | . 40 . 75 20 . . 30 . . 10 . 80 5 . . . . . Destroy Leader 426 | . 68 20 158 50 . 10 26 . . 14 . 78 2 . . . . . Allied During Kill 283 | . . . . . . . 22 . . . . 261 . . . . . . Successful Hack 79 | . 12 . 12 . . . . 3 . 25 . 18 6 . . 3 . . Disable Machine 135 | . 15 . 15 15 . . 30 . . . . 60 . . . . . . Destroy Structure 396 | . 54 16 99 34 . . 41 . 1 2 30 47 . . 72 . . . Partial Spotted 60 | . . . . . . . . . . 30 . 15 15 . . . . . Lose Combat Pursuer 105 | . . 15 . . . . . . . . . 30 . . . . 60 . Influence Decreases 3524 | . 369 100 768 504 157 70 280 28 18 101 37 350 366 124 137 16 32 67 Entered New Map 948 | . . . 44 160 157 . . 28 8 4 5 . 296 124 77 16 12 17 Time Decay 1994 | . 369 100 604 334 . 60 130 . . 77 30 180 70 . 40 . . . Lost Part 330 | . . . 120 10 . 10 70 . 10 20 . . . . 20 . 20 50 Lost Ally 252 | . . . . . . . 80 . . . 2 170 . . . . . . Squads Dispatched 25 | . 3 . 4 . . . 3 . 1 3 . 9 1 . . . 1 . Investigation 6 | . . . 1 . . . 1 . . 1 . 3 . . . . . . Extermination 3 | . . . . . . . . . . 1 . 1 1 . . . . . Reinforcement 15 | . 3 . 3 . . . 1 . 1 1 . 5 . . . . 1 . Assault . | . . . . . . . . . . . . . . . . . . . Garrison 1 | . . . . . . . 1 . . . . . . . . . . . Intercept . | . . . . . . . . . . . . . . . . . . . Searches Triggered . | . . . . . . . . . . . . . . . . . . . Construction Impeded 2 | . . . 1 . . . . . . . . 1 . . . . . . Haulers Reinforced 1 | . . . . . . . . . . . . 1 . . . . . . Active Scanning Responses . | . . . . . . . . . . . . . . . . . . . Cargo Convoy Interrupts . | . . . . . . . . . . . . . . . . . . . Stealth | -11 -10 -10 -9 -9 -9 -8 -8 -7 -7 -6 -6 -6 -5 -4 -4 -4 -4 -4 --------- Run | Yrd Mat Min Mat Min Exi Min Mat Fac DSF Fac Was Fac Fac Fac Was Fac DSF Gar Distress Signals 10 | . 1 . 3 . . . 1 . . . . 5 . . . . . . Communications Jammed . | . . . . . . . . . . . . . . . . . . . Distress Signals . | . . . . . . . . . . . . . . . . . . . Times Spotted 194 | . 22 7 52 14 . 4 18 . 10 11 6 27 . . 6 . 4 13 Peak Tracking Total 13 | . 2 3 6 3 . 3 8 . 5 4 5 13 . . 4 . 5 12 Tactical Retreats 14 | . . 1 . . . . 2 . 4 3 1 2 . . . . 1 . Traps | -11 -10 -10 -9 -9 -9 -8 -8 -7 -7 -6 -6 -6 -5 -4 -4 -4 -4 -4 ------- Run | Yrd Mat Min Mat Min Exi Min Mat Fac DSF Fac Was Fac Fac Fac Was Fac DSF Gar Traps Triggered 10 | . 4 . . . . . 1 . 1 2 . . 1 1 . . . . Indirectly . | . . . . . . . . . . . . . . . . . . . Trap Hack Attempts . | . . . . . . . . . . . . . . . . . . . Triggered . | . . . . . . . . . . . . . . . . . . . Disarmed 6 | . 6 . . . . . . . . . . . . . . . . . Reprogrammed . | . . . . . . . . . . . . . . . . . . . Reused . | . . . . . . . . . . . . . . . . . . . Traps Extracted . | . . . . . . . . . . . . . . . . . . . Installed . | . . . . . . . . . . . . . . . . . . . Triggered . | . . . . . . . . . . . . . . . . . . . Most Traps Carried 3 | . . . . 3 3 3 3 . . . . . . . . . . . Machines | -11 -10 -10 -9 -9 -9 -8 -8 -7 -7 -6 -6 -6 -5 -4 -4 -4 -4 -4 ---------- Run | Yrd Mat Min Mat Min Exi Min Mat Fac DSF Fac Was Fac Fac Fac Was Fac DSF Gar Machines Disabled 9 | . 1 . 1 1 . . 2 . . . . 4 . . . . . . Max in Single Turn 2 | . 1 . 1 1 . . 2 . . . . 1 . . . . . . Garrison Access 1 | . . . . . . . . . . . . . 1 . . . . . Machines Repaired . | . . . . . . . . . . . . . . . . . . . Machines Dismantled . | . . . . . . . . . . . . . . . . . . . Machines Sabotaged . | . . . . . . . . . . . . . . . . . . . Overloaded Fab Kills . | . . . . . . . . . . . . . . . . . . . Hacking | -11 -10 -10 -9 -9 -9 -8 -8 -7 -7 -6 -6 -6 -5 -4 -4 -4 -4 -4 --------- Run | Yrd Mat Min Mat Min Exi Min Mat Fac DSF Fac Was Fac Fac Fac Was Fac DSF Gar Machines Accessed 32 | . 5 . 6 . 1 . 1 1 . 5 . 6 5 1 . 1 . . Terminals 18 | . 4 . 2 . . . 1 1 . 2 . 3 3 1 . 1 . . Fabricators 1 | . . . . . . . . . . 1 . . . . . . . . Repair Stations 3 | . 1 . 1 . . . . . . 1 . . . . . . . . Recycling Units 5 | . . . 2 . . . . . . 1 . 2 . . . . . . Scanalyzers 3 | . . . 1 . . . . . . . . 1 1 . . . . . Garrison Access 1 | . . . . . . . . . . . . . 1 . . . . . Total Hacks 90 | . 16 . 17 . 1 . 2 1 . 17 . 20 13 2 . 1 . . Successful 49 | . 4 . 9 . 1 . . 1 . 11 . 11 11 . . 1 . . Failed 41 | . 12 . 8 . . . 2 . . 6 . 9 2 2 . . . . Catastrophic 10 | . 4 . 1 . . . 1 . . 1 . 1 1 1 . . . . Database Lockouts . | . . . . . . . . . . . . . . . . . . . Manual 36 | . 9 . 4 . 1 . 2 . . 6 . 6 6 2 . . . . Terminals 59 | . 13 . 6 . . . 2 1 . 8 . 16 10 2 . 1 . . Fabricators 5 | . . . . . . . . . . 5 . . . . . . . . Repair Stations 8 | . 3 . 3 . . . . . . 2 . . . . . . . . Recycling Units 11 | . . . 6 . . . . . . 2 . 3 . . . . . . Scanalyzers 5 | . . . 2 . . . . . . . . 1 2 . . . . . Garrison Access 1 | . . . . . . . . . . . . . 1 . . . . . Terminal Hacks 26 | . 3 . 3 . 1 . . 1 . 3 . 8 6 . . 1 . . Record 5 | . . . . . . . . . . 1 . 2 2 . . . . . Part Schematic 1 | . . . . . . . . . . 1 . . . . . . . . Prototype ID Bank 2 | . . . . . . . . . . . . 1 1 . . . . . Open DSF 2 | . . . . . . . . 1 . . . . . . . 1 . . Level Access Points 1 | . . . . . . . . . . . . 1 . . . . . . Branch Access Points 1 | . . . . . . . . . . . . 1 . . . . . . Terminal Index 1 | . . . . . . . . . . . . 1 . . . . . . Recycling Unit Index 1 | . . . 1 . . . . . . . . . . . . . . . Alert Level 1 | . . . . . . . . . . . . 1 . . . . . . Locate Traps 1 | . . . 1 . . . . . . . . . . . . . . . Disarm Traps 1 | . 1 . . . . . . . . . . . . . . . . . Maintenance Status 1 | . . . . . . . . . . . . . 1 . . . . . Patrol Status 1 | . . . . . . . . . . . . . 1 . . . . . Recall Investigation 1 | . . . . . . . . . . . . 1 . . . . . . Hauler Manifests 2 | . . . 1 . . . . . . 1 . . . . . . . . Registered Components 2 | . 1 . . . . . . . . . . . 1 . . . . . Zone Layout 1 | . 1 . . . . . . . . . . . . . . . . . Proto ID Catalog 1 | . . . . . 1 . . . . . . . . . . . . . Fabricator Hacks 4 | . . . . . . . . . . 4 . . . . . . . . Load Schematic 2 | . . . . . . . . . . 2 . . . . . . . . Build 2 | . . . . . . . . . . 2 . . . . . . . . Repair Station Hacks 4 | . . . 2 . . . . . . 2 . . . . . . . . Scan Component 2 | . . . 1 . . . . . . 1 . . . . . . . . Repair 2 | . . . 1 . . . . . . 1 . . . . . . . . Recycling Unit Hacks 4 | . . . 2 . . . . . . 1 . 1 . . . . . . Retrieve Components 4 | . . . 2 . . . . . . 1 . 1 . . . . . . Scanalyzer 5 | . . . 2 . . . . . . . . 1 2 . . . . . Insert Component 3 | . . . 1 . . . . . . . . 1 1 . . . . . Analyze 2 | . . . 1 . . . . . . . . . 1 . . . . . Garrison Access Hacks 1 | . . . . . . . . . . . . . 1 . . . . . Seal Access 1 | . . . . . . . . . . . . . 1 . . . . . Unauthorized Hacks 5 | . 1 . . . . . . . . 1 . 1 2 . . . . . Terminals 5 | . 1 . . . . . . . . 1 . 1 2 . . . . . Botnet 5 | . 1 . . . . . . . . 1 . 1 2 . . . . . Fabricators . | . . . . . . . . . . . . . . . . . . . Repair Stations . | . . . . . . . . . . . . . . . . . . . Recycling Units . | . . . . . . . . . . . . . . . . . . . Scanalyzers . | . . . . . . . . . . . . . . . . . . . Garrison Access . | . . . . . . . . . . . . . . . . . . . Data Cores Recovered . | . . . . . . . . . . . . . . . . . . . Used . | . . . . . . . . . . . . . . . . . . . Hacking Detections 27 | . 5 . 4 . . . 1 1 . 4 . 6 4 1 . 1 . . Full Trace Events 7 | . 2 . 2 . . . 1 . . 1 . 1 . . . . . . Feedback Events . | . . . . . . . . . . . . . . . . . . . Feedback Blocked . | . . . . . . . . . . . . . . . . . . . Robot Schematics Acquired . | . . . . . . . . . . . . . . . . . . . Robots Built . | . . . . . . . . . . . . . . . . . . . Authchips . | . . . . . . . . . . . . . . . . . . . Time . | . . . . . . . . . . . . . . . . . . . Total Robot Build Rating . | . . . . . . . . . . . . . . . . . . . Part Schematics Acquired 3 | . . . 1 . . . . . . 1 . . 1 . . . . . Parts Built 1 | . . . . . . . . . . 1 . . . . . . . . Authchips 1 | . . . . . . . . . . 1 . . . . . . . . Time 134 | . . . . . . . . . . 134 . . . . . . . . Total Part Build Rating 4 | . . . . . . . . . . 4 . . . . . . . . Parts Repaired 2 | . . . 1 . . . . . . 1 . . . . . . . . Time 64 | . . . 26 . . . . . . 38 . . . . . . . . Parts Recycled . | . . . . . . . . . . . . . . . . . . . Recycled Matter . | . . . . . . . . . . . . . . . . . . . Retrieved Matter . | . . . . . . . . . . . . . . . . . . . Retrieved Components 25 | . . . 19 . . . . . . 2 . 4 . . . . . . Parts Scanalyzed 2 | . . . 1 . . . . . . . . . 1 . . . . . Part Schematics Acquired 2 | . . . 1 . . . . . . . . . 1 . . . . . Parts Damaged . | . . . . . . . . . . . . . . . . . . . Bothacking | -11 -10 -10 -9 -9 -9 -8 -8 -7 -7 -6 -6 -6 -5 -4 -4 -4 -4 -4 ------------ Run | Yrd Mat Min Mat Min Exi Min Mat Fac DSF Fac Was Fac Fac Fac Was Fac DSF Gar Used RIF Installer 1 | . . . . . . . . . . . . . . . . . . 1 Robots Hacked . | . . . . . . . . . . . . . . . . . . . Non-combat . | . . . . . . . . . . . . . . . . . . . Combat . | . . . . . . . . . . . . . . . . . . . Robot Hacks Applied . | . . . . . . . . . . . . . . . . . . . Relay Couplers Released . | . . . . . . . . . . . . . . . . . . . Fabnet Peak Effective % . | . . . . . . . . . . . . . . . . . . . Robots Rewired . | . . . . . . . . . . . . . . . . . . . Allies Hacked . | . . . . . . . . . . . . . . . . . . . Hacks Repelled . | . . . . . . . . . . . . . . . . . . . Allies | -11 -10 -10 -9 -9 -9 -8 -8 -7 -7 -6 -6 -6 -5 -4 -4 -4 -4 -4 -------- Run | Yrd Mat Min Mat Min Exi Min Mat Fac DSF Fac Was Fac Fac Fac Was Fac DSF Gar Total Allies 24 | . . . . . . . 4 . . . 20 . . . . . . . Largest Group 20 | . . . . . . . 4 . . . 20 17 . . . . . . Highest-Rated Group 733 | . . . . . . . 66 . . . 733 652 . . . . . . Highest-Rated Ally 50 | . . . . . . . 18 . . . 50 50 . . . . . . Total Orders 2 | . . . . . . . 1 . . . . . . . . . 1 . AID 1 | . . . . . . . 1 . . . . . . . . . . . RETURN 1 | . . . . . . . . . . . . . . . . . 1 . Ally Attacks 285 | . . . . . . . 35 . . . 132 118 . . . . . . Total Damage 6908 | . . . . . . . 604 . . . 3249 3055 . . . . . . Kills 34 | . . . . . . . 7 . . . 7 20 . . . . . . Allies Corrupted 2 | . . . . . . . . . . . . 2 . . . . . . Allies Melted . | . . . . . . . . . . . . . . . . . . . Field Lobotomies 4 | . . . . . . . 4 . . . . . . . . . . . Intel | -11 -10 -10 -9 -9 -9 -8 -8 -7 -7 -6 -6 -6 -5 -4 -4 -4 -4 -4 ------- Run | Yrd Mat Min Mat Min Exi Min Mat Fac DSF Fac Was Fac Fac Fac Was Fac DSF Gar Active Infowar (turns) 819 | . . . . . . . 249 4 86 368 . 2 110 . . . . . Structural 238 | . . . . . . . 238 . . . . . . . . . . . ECM 793 | . . . . . . . 223 4 86 368 . 2 110 . . . . . Robot Analysis Total . | . . . . . . . . . . . . . . . . . . . Derelict Logs Recovered 3 | . . 1 . 2 . . . . . . . . . . . . . . Drone Launches 2 | . . . . . . . . . . . . . . . . . 2 . Drone Recoveries . | . . . . . . . . . . . . . . . . . . . Exploration | -11 -10 -10 -9 -9 -9 -8 -8 -7 -7 -6 -6 -6 -5 -4 -4 -4 -4 -4 ------------- Run | Yrd Mat Min Mat Min Exi Min Mat Fac DSF Fac Was Fac Fac Fac Was Fac DSF Gar Turns Passed 7788 | 61 2059 313 1941 755 405 410 396 5 86 453 182 373 151 17 90 1 22 68 Spaces Moved 6541 | 38 831 122 853 429 253 154 250 6 165 1034 303 952 597 84 275 4 87 104 Core 46 | 9 . . . . . . 1 . . . . . . . . . . 36 Treads 2717 | 29 831 122 853 429 253 154 46 . . . . . . . . . . . Legs . | . . . . . . . . . . . . . . . . . . . Wheels . | . . . . . . . . . . . . . . . . . . . Hover . | . . . . . . . . . . . . . . . . . . . Flight 3778 | . . . . . . . 203 6 165 1034 303 952 597 84 275 4 87 68 Fastest Speed 5 | 50 160 240 160 160 160 240 29 29 29 21 23 5 20 20 20 20 6 23 Average Speed 94 | 133 218 240 179 160 160 240 91 29 29 25 23 20 20 20 20 20 19 34 Slowest Speed 320 | 160 320 240 240 240 160 240 320 29 29 32 23 23 20 20 23 20 23 50 Overloaded Moves 41 | . . . . . . . . . . . . 29 . . . . 12 . Propulsion Burnouts . | . . . . . . . . . . . . . . . . . . . Robots Hopped 16 | . . . . . . . . . . 4 . 5 7 . . . . . Potential Cave-ins . | . . . . . . . . . . . . . . . . . . . Cave-ins Triggered . | . . . . . . . . . . . . . . . . . . . Exploration Rate (%) 47 | 4 94 40 63 82 60 48 22 1 90 23 91 26 16 4 99 . 78 22 Regions Visited 18 Branch Regions 4 Pre-discovered Areas 1 | . . 1 . . . . . . . . . . . . . . . . Known Exits Taken 3 | . . . . . . . . 1 . . . 1 . . . 1 . . Unknown Exits Taken 9 | 1 1 1 1 1 1 1 1 . . . . . 1 . . . . . Scrap Searched 2 | . . . . 1 . 1 . . . . . . . . . . . . Spaces Dug 9 | . . . . . . . . . 2 2 . 5 . . . . . . Terrain Destroyed 442 | . 54 22 96 49 . . 57 . 2 2 4 18 . . 138 . . . Melee 9 | . . . . . . . . . 2 2 . 5 . . . . . . Projectile 20 | . . . 3 . . . . . . . 4 13 . . . . . . AOE 413 | . 54 22 93 49 . . 57 . . . . . . . 138 . . . Terrain Rammed . | . . . . . . . . . . . . . . . . . . . Walls Destroyed . | . . . . . . . . . . . . . . . . . . . Machines Disabled . | . . . . . . . . . . . . . . . . . . . Actions | -11 -10 -10 -9 -9 -9 -8 -8 -7 -7 -6 -6 -6 -5 -4 -4 -4 -4 -4 --------- Run | Yrd Mat Min Mat Min Exi Min Mat Fac DSF Fac Was Fac Fac Fac Was Fac DSF Gar Total 7562 | 48 978 131 1069 466 254 176 348 8 199 1200 398 1063 618 84 297 3 89 133 Wait 399 | . 46 . 26 . . 2 15 . 8 140 74 36 23 . 8 . . 21 Move 6496 | 37 830 121 852 428 252 153 249 5 164 1026 302 943 583 84 274 3 86 104 Hop 13 | . . . . . . . . . . 4 . 3 6 . . . . . Pick Up 84 | 6 18 1 26 5 1 2 5 . 5 6 2 7 . . . . . . Fast Attach 19 | . 1 . . 1 . 3 3 . 1 2 . . 2 . 3 . 3 . Attach 53 | 5 9 1 14 2 . . 10 3 2 5 2 . . . . . . . Detach 2 | . . . . . . . 1 . 1 . . . . . . . . . Swap 51 | . 6 1 19 4 . 1 4 . 1 3 1 8 2 . 1 . . . Drop 40 | . 2 . 3 4 1 4 11 . 1 4 1 7 1 . 1 . . . Fire 328 | . 65 7 124 20 . 11 26 . . . 16 49 . . 10 . . . Melee 49 | . . . . . . . 24 . 2 10 . 10 1 . . . . 2 Ram 6 | . . . . . . . . . . . . . . . . . . 6 Kick . | . . . . . . . . . . . . . . . . . . . Crush 8 | . 1 . 5 2 . . . . . . . . . . . . . . Escape Stasis 14 | . . . . . . . . . 14 . . . . . . . . . Rewire . | . . . . . . . . . . . . . . . . . . . Trap . | . . . . . . . . . . . . . . . . . . . Miscellaneous . | . . . . . . . . . . . . . . . . . . . Route ------- -11/Scrapyard -10/Materials (discovered 5 exits: *Mat x3 / [*Min] / [*Sub]) -10/Mines -9/Materials (discovered 3 exits: *Mat / [*Min] / [*Sto]) -9/Mines (discovered 3 exits: *Mat x2 / *Exi) -9/Exiles -8/Mines -8/Materials -7/Factory (discovered 2 exits: Low / DSF) -7/DSF -6/Factory -6/Waste -6/Factory (discovered 6 exits: *Fac x4 / Low x2) -5/Factory -4/Factory -4/Waste -4/Factory -4/DSF -4/Garrison History --------- Turn | Location | Event 24 | -11/Scrapyard | Discovered new exit (range 16) 62 | -11/Scrapyard | Entered Materials 289 | -10/Materials | Discovered new exit (range 11) 305 | -10/Materials | Build established: Mutant 406 | -10/Materials | Discovered new exit (range 5) 525 | -10/Materials | Discovered new exit (range 9) 830 | -10/Materials | Discovered new exit (range 15) 1358 | -10/Materials | Discovered new exit (range 16) 2121 | -10/Materials | Entered Mines 2293 | -10/Mines | Received a Rocket Launcher from a helpful Derelict 2331 | -10/Mines | Discovered new exit (range 9) 2403 | -10/Mines | Learned location of Mines (-8) 2434 | -10/Mines | Entered Materials 2434 | -9/Materials | Evolved 2 slots: Propulsion x1, Utility x1 2560 | -9/Materials | Lost 4 parts (1p1n1u1w) 2633 | -9/Materials | Repaired Lgt. Cannon 2659 | -9/Materials | Discovered new exit (range 10) 2766 | -9/Materials | Discovered new exit (range 7) 3187 | -9/Materials | Core integrity fell below 50% 3213 | -9/Materials | Lost 5 parts (1p2u2w) 3681 | -9/Materials | Discovered new exit (range 16) 4375 | -9/Materials | Entered Mines 4756 | -9/Mines | Discovered new exit (range 8) 4839 | -9/Mines | Discovered new exit (range 14) 4951 | -9/Mines | Found a hidden stash of uninstalled traps 5123 | -9/Mines | Deemed a non-threat by the Exiles lab entrance 5123 | -9/Mines | Discovered new exit (range 5) 5130 | -9/Mines | Entered Exiles 5172 | -9/Exiles | Met 8R-AWN 5198 | -9/Exiles | Met EX-HEX 5260 | -9/Exiles | Met EX-DEC 5278 | -9/Exiles | Met EX-BIN 5308 | -9/Exiles | Aligned with FarCom system 5310 | -9/Exiles | Given EX-Vault access code 5346 | -9/Exiles | Opened EX-Vault 5358 | -9/Exiles | Found Field Lobotomy Kit 5390 | -9/Exiles | Warned to stay clear of 0b10 Research branches 5516 | -9/Exiles | Discovered new exit (range 14) 5535 | -9/Exiles | Left Exiles lab with Field Lobotomy Kit 5535 | -9/Exiles | Entered Mines 5556 | -8/Mines | Core integrity fell below 20% 5813 | -8/Mines | Found DCF Scrap (13 items) 5921 | -8/Mines | Discovered new exit (range 8) 5945 | -8/Mines | Entered Materials 5945 | -8/Materials | Evolved 2 slots: Propulsion x1, Utility x1 6103 | -8/Materials | Assimilated L-31 Rogue with FLK Orb 6106 | -8/Materials | Assimilated G-47 Trooper with FLK Orb 6109 | -8/Materials | Assimilated G-47 Trooper with FLK Orb 6112 | -8/Materials | Assimilated G-47 Trooper with FLK Orb 6126 | -8/Materials | Lost 6 parts (1p1n3u1w) 6155 | -8/Materials | Garrison activated, responded to threat 6255 | -8/Materials | Lost 3 allies 6320 | -8/Materials | Discovered new exit (range 7) 6341 | -8/Materials | Entered Factory 6341 | -7/Factory | Evolved 2 slots: Utility x2 6342 | -7/Factory | Identified exit to Lower Caves 6346 | -7/Factory | Identified exit to DSF 6346 | -7/Factory | Entered DSF 6364 | -7/DSF | Additional patrols routed to DSF 6404 | -7/DSF | Discovered new exit (range 15) 6432 | -7/DSF | Entered Factory 6432 | -6/Factory | Evolved 2 slots: Propulsion x2 6493 | -6/Factory | Repaired Imp. Light Armor Plating 6603 | -6/Factory | Fabricated Cld. VTOL Module? 6662 | -6/Factory | Build established: Hacker-Sprinter 6885 | -6/Factory | Sucked down chute 6885 | -6/Factory | Entered Waste 6886 | -6/Waste | Met a frightened Derelict 6887 | -6/Waste | Spotted C-40 Crusher 6887 | -6/Waste | Spotted C-40 Crusher 6891 | -6/Waste | Spotted C-40 Crusher 6894 | -6/Waste | Spotted C-40 Crusher 6896 | -6/Waste | Spotted C-40 Crusher 6904 | -6/Waste | Warlord forces began an assault 6939 | -6/Waste | Allies destroyed C-40 Crusher 6939 | -6/Waste | Allies destroyed C-40 Crusher 6942 | -6/Waste | Allies destroyed C-40 Crusher 6948 | -6/Waste | Allies destroyed C-40 Crusher 6967 | -6/Waste | Allies destroyed C-40 Crusher 6991 | -6/Waste | Discovered new exit (range 14) 7030 | -6/Waste | Spotted C-40 Crusher 7038 | -6/Waste | Allies destroyed C-40 Crusher 7067 | -6/Waste | Entered Factory 7067 | -6/Factory | Accompanied by 17 allies 7245 | -6/Factory | Identified exit to Factory 7245 | -6/Factory | Identified exit to Lower Caves 7319 | -6/Factory | Allied Derelicts emerged from ambush trap array 7438 | -6/Factory | Spotted B-75 Beast 7440 | -6/Factory | Entered another Factory area 7440 | -5/Factory | Evolved 2 slots: Utility x2 7461 | -5/Factory | Lost 8 allies 7564 | -5/Factory | Discovered new exit (range 13) 7591 | -5/Factory | Entered another Factory area 7591 | -4/Factory | Evolved 2 slots: Power x1, Utility x1 7608 | -4/Factory | Sucked down chute 7608 | -4/Factory | Entered Waste 7623 | -4/Waste | EMP discharged 7625 | -4/Waste | Spotted C-40 Crusher 7626 | -4/Waste | Spotted C-40 Crusher 7627 | -4/Waste | Spotted C-40 Crusher 7628 | -4/Waste | Spotted C-40 Crusher 7634 | -4/Waste | Crushed by Compactor (1 part destroyed, 1 dropped) 7638 | -4/Waste | Found Fusion Bomb Launcher 7642 | -4/Waste | Destroyed C-40 Crusher 7646 | -4/Waste | Destroyed C-40 Crusher 7656 | -4/Waste | Destroyed C-40 Crusher 7664 | -4/Waste | Spotted C-40 Crusher 7672 | -4/Waste | Spotted C-40 Crusher 7672 | -4/Waste | Discovered new exit (range 13) 7679 | -4/Waste | Crushed by Compactor (1 part destroyed, 1 dropped) 7695 | -4/Waste | Found Prototype Reactor 7695 | -4/Waste | Identified Zero-point Reactor 7698 | -4/Waste | Entered Factory 7699 | -4/Factory | Identified exit to DSF 7699 | -4/Factory | Entered DSF 7716 | -4/DSF | Additional patrols routed to DSF 7718 | -4/DSF | Discovered new exit (range 16) 7721 | -4/DSF | Entered Garrison 7731 | -4/Garrison | Triggered checkpoint 7734 | -4/Garrison | Installed Relay Interface Framework 7753 | -4/Garrison | Lost 4 parts (1p2n1u) 7769 | -4/Garrison | Core integrity fell below 50% 7775 | -4/Garrison | Triggered checkpoint 7785 | -4/Garrison | Core integrity fell below 20% 7789 | -4/Garrison | Destroyed by P-70 Sage with Tesla Rifle Last Messages --------------- 07762_ Critical hit (Burn: +50). 07764_ ECM Suite destroyed. 07765_ Katana destroyed. 07766_ Slammed into G-67 Veteran. 07767_ Hacking Suite destroyed. 07768_ Slammed into G-67 Veteran. 07770_ System corrupted: Matter fused (-9). 07771_ Critical hit (Burn: +37). 07771_ Imp. Hacking Suite destroyed. 07775_ Beams of light sweep through the air. An alarm sounds. 07775_ C-30 ARC bursts open, deploying its payload. 07775_ S-27 Virus unfolds itself. 07776_ S-27 Virus destroyed. 07778_ Imp. Hacking Suite destroyed. 07786_ Slug penetrates Wall. 07786_ Slammed into P-70 Sage. 07788_ System Shield destroyed. 07788_ Slammed into P-70 Sage. Map ----- +----------------------------------------------------+ | | | | | | | | | | | | | | | | | | | | | | | | | | | | | ??????????????????????????????????? | | ??????????????????????????????????? | | ?????????????????????#####?######?? | | ????????????????????## ## #"#?? | | ????????????????????# # "#?? | | ????????????????????# # "#?? | | ????????????????????# "#?? | | ????????????????????## ## #"#?? | | ?????????????????????#####?# #???? | | ???????????????????????????# #???? | | ############################s ##??? | | %%%g g *p@ss Y/ #?? | | g gg %=%p Y #?? | | ######### #####+##### [ ########?? | | ????????# #?????????#CC%#????????? | | ######### #########?#####????????? | | #??????????????? | | #??????????????? | | #??????????????? | | #??????????????? | | #??????????????? | | #??????????????? | | #??????????????? | | #??????????????? | | #??????????????? | | #??????????????? | | #??????????????? | | #??????????????? | | #??????????????? | | #??????????????? | | #??????????????? | | #??????????????? | | #??????????????? | | #??????????????? | | #??????????????? | | ######### #########??????????????? | +----------------------------------------------------+ Best States ------------- Heat Dissipation 43 Energy Generation 19 Energy Capacity 500 Matter Stores 300 Matter Capacity 300 Sight Range 16 Terrain Scan Density 10 ECM Strength 1 Armor Coverage 375 Propulsion Shielding 66 Evasion (%) 66 Recoil Reduction 3 Offensive Hacking 34 Defensive Hacking 10 Authchip Count 2 Item Schematics ----------------- Imp. Flight Unit | -9/Materials | Scanalyzed Cld. VTOL Module | -6/Factory | Hacked Imp. Light Armor Plating | -5/Factory | Scanalyzed Robot Schematics ------------------ None Fabricated ------------ Cld. VTOL Module | x1 | -6/Factory Repaired ---------- Lgt. Cannon | 3% | -9/Materials Imp. Light Armor Plating | 38% | -6/Factory Alien Tech Used ----------------- None Achievements -------------- Below Cya! Safety First We Are Legion Challenges ------------ None Game ------ Seed ContainmentZhirovDrivehammer Manual? 0 Play Time 01:55:22 Cumulative 21.8 hours Start 2025.07.11 @ 14:39:28 End 2025.07.12 @ 14:29:37 Sessions 3 Manual Loads 0 Difficulty Rogue Special Mode None Game No. 34 Rogue 34 Adventurer 0 Explorer 0 Win Type - Total 0 Types 0/0/0/0/0/0/0/0/0/0 Lore% 17 Gallery% 19 Achievement% 26 Wizard Run 0 Options --------- Layout 1 ASCII 0 Keyboard 0 Movement Mouse Keybinds 0 Fullscreen 1 Font 24/Smallcaps Map View 50x35 Zoom Use 0% Tactical HUD 1 Map Filters NONE Filters NONE Steam 1 RUN: 8449925e-c8df-4229-97f2-4c5b9d1993a7